fUST/lending_fUST_20240112
["ID","MTS","AMOUNT","RATE_DAILY","PERIOD"]
[311242751,1704991838842,-246.10686283,0.00020732,2]
[311242754,1704991838852,-594.07215949,0.00020732,2]
[311242756,1704991838861,-170.099936,0.00020739,2]
[311242758,1704991838871,-24900.0,0.00021036,2]
[311242760,1704991838880,-166.666666,0.00021918,2]
[311242762,1704991838889,-4918.87947459,0.00022,2]
[311242764,1704991838898,-164.91013208,0.00022076,2]
[311242766,1704991838907,-783.53547067,0.00022162,2]
[311242768,1704991838916,-851.16413748,0.00022163,2]
[311242770,1704991838926,-190.61378566,0.00022173,2]
[311242772,1704991838935,-170.19796657,0.00022174,2]
[311242774,1704991838945,-270787.85398816,0.00022175,2]
[311242776,1704991838954,-50474.5555326,0.00022176,2]
[311242778,1704991838963,-166.666666,0.00022431,2]
[311242780,1704991838972,-166.666666,0.00022944,2]
[311242782,1704991838981,-9923.17263833,0.00023,2]
[311242784,1704991838990,-2093.45221107,0.00023,2]
[311242786,1704991838999,-309.81411154,0.00023262,2]
[311242788,1704991839008,-166.666666,0.00023456,2]
[311242790,1704991839017,-166.666666,0.00023969,2]
[311242792,1704991839027,-4005.39956635,0.00024,2]
[311242794,1704991839036,-166.666666,0.00024482,2]
[311242796,1704991839045,-687.75702701,0.000247,2]
[311242798,1704991839054,-21296.00172954,0.00024884,2]
[311242800,1704991839063,-4711.91259146,0.00025,2]
[311242802,1704991839072,-164.079527,0.00025441,2]
[311242804,1704991839081,-525.99300196,0.00026,2]
[311242806,1704991839090,-164.91013207,0.0002633,2]
[311242808,1704991839099,-155.07753877,0.00027,7]
[311242810,1704991839108,-642.78616711,0.00027935,2]
[311242812,1704991839118,-3278.08353529,0.00028604,3]
[311242814,1704991839127,-180.4453294,0.000289,2]
[311242816,1704991839136,-155.07753877,0.00029,2]
[311242818,1704991839145,-3025.449916,0.00029,2]
[311242820,1704991839155,-470.94036832,0.00029298,2]
[311242822,1704991839166,-2410.28189253,0.00029298,2]
[311242824,1704991839175,-2550.64549971,0.00029298,2]
[311242826,1704991839185,-351.80111995,0.00029298,2]
[311242828,1704991839194,-6602.15861025,0.00029298,2]
[311242829,1704991839203,-569.37401545,0.00029298,2]
[311242830,1704991839213,-520.61604034,0.00029298,2]
[311242831,1704991839222,-900.88644638,0.00029299,2]
[311242832,1704991839230,-155.1054701,0.00029299,2]
[311242833,1704991839239,-415.16979059,0.00029299,2]
[311242834,1704991839248,-49610.06269275,0.000293,5]
[311242835,1704991839257,-152.756674,0.00029311,2]
[311242836,1704991839266,-166.584241,0.00029311,2]
[311242837,1704991839277,-172.432805,0.00029311,2]
[311242838,1704991839285,-185.337779,0.00029311,2]
[311242839,1704991839294,-183.58776,0.00029311,2]
[311242840,1704991839303,-281.288034,0.00029311,2]
[311242841,1704991839313,-183.587759,0.00029311,2]
[311242842,1704991839322,-160.389845,0.00029311,2]
[311242843,1704991839330,-185.337779,0.00029677,2]
[311242844,1704991839339,-254.23001474,0.00029701,3]
[311242845,1704991839348,-152.31739518,0.00029775,2]
[311242846,1704991839357,-152.31739518,0.00029794,2]
[311242848,1704991839367,-166.584241,0.00029799,2]
[311242850,1704991839376,-172.432805,0.00029799,2]
[311242852,1704991839385,-183.58776,0.00029799,2]
[311242854,1704991839394,-183.587759,0.00029799,2]
[311242856,1704991839403,-82765.22940061,0.000299,2]
[311242857,1704991839412,-157.00088553,0.00029925,2]
[311242859,1704991839421,-9090.95951521,0.00029931,4]
[311242862,1704991839431,-55552.1602185,0.0003,15]
[311242863,1704991839440,-6975.26133049,0.0003,4]
[311242865,1704991839449,-10528.61647802,0.0003,4]
[311242867,1704991839458,-686.8051383,0.0003,4]
[311242869,1704991839467,-2151.8403773,0.0003,4]
[311242871,1704991839477,-639.80669723,0.0003,4]
[311242873,1704991839486,-463.46661998,0.0003,4]
[311242875,1704991839495,-1212.69117697,0.0003,2]
[311242877,1704991839504,-2000.0,0.0003,2]
[311242879,1704991839513,-585.54897925,0.0003,2]
[311242881,1704991839522,-501.00894022,0.0003,2]
[311242883,1704991839532,-4452.61455502,0.0003,4]
[311242885,1704991839541,-2448.05627337,0.0003,2]
[311242888,1704991839552,-366.86331613,0.0003,4]
[311242889,1704991839560,-649.77067269,0.0003,4]
[311242892,1704991839570,-201.0,0.0003,2]
[311242894,1704991839579,-157.6845518,0.0003,2]
[311242896,1704991839588,-2000.0,0.0003001,2]
[311242898,1704991839597,-2000.0,0.0003002,2]
[311242900,1704991839606,-2000.0,0.0003003,2]
[311242902,1704991839615,-2000.0,0.0003004,2]
[311242903,1704991839624,-185.337779,0.00030043,2]
[311242905,1704991839633,-152.756674,0.00030044,2]
[311242907,1704991839642,-160.389845,0.00030044,2]
[311242909,1704991839651,-2000.0,0.0003005,2]
[311242912,1704991839661,-2000.0,0.0003006,2]
[311242914,1704991839670,-2000.0,0.0003007,2]
[311242915,1704991839679,-2000.0,0.0003008,2]
[311242917,1704991839689,-2000.0,0.0003009,2]
[311242919,1704991839698,-300.0,0.000301,14]
[311242921,1704991839708,-2000.0,0.000301,2]
[311242923,1704991839717,-3349.537238,0.0003011,2]
[311242925,1704991839725,-200.61953262,0.00030136,2]
[311242927,1704991839734,-200.0,0.00030136,2]
[311242929,1704991839743,-2079.89647566,0.00030136,4]
[311242931,1704991839753,-500.0,0.00030136,2]
[311242933,1704991839762,-500.0,0.00030136,2]
[311242935,1704991839772,-500.0,0.00030136,2]
[311242937,1704991839782,-500.0,0.00030136,2]
[311242939,1704991839791,-500.0,0.00030136,2]
[311242941,1704991839801,-500.0,0.00030136,2]
[311242943,1704991839810,-500.0,0.00030136,2]
[311242945,1704991839819,-500.0,0.00030136,2]
[311242947,1704991839829,-500.0,0.00030136,2]
[311242949,1704991839838,-501.00207667,0.00030136,2]
[311242951,1704991839847,-303.4997889,0.00030136,2]
[311242953,1704991839859,-500.0,0.00030136,2]
[311242955,1704991839868,-500.0,0.00030136,2]
[311242957,1704991839877,-500.0,0.00030136,2]
[311242959,1704991839886,-500.0,0.00030136,2]
[311242961,1704991839895,-500.0,0.00030136,2]
[311242963,1704991839904,-500.0,0.00030136,2]
[311242965,1704991839913,-500.0,0.00030136,2]
[311242967,1704991839922,-500.0,0.00030136,2]
[311242969,1704991839931,-500.0,0.00030136,2]
[311242971,1704991839939,-633.44866808,0.00030136,2]
[311242973,1704991839948,-408.77456977,0.00030136,2]
[311242975,1704991839957,-500.0,0.00030136,2]
[311242977,1704991839967,-500.0,0.00030136,2]
[311242979,1704991839976,-500.0,0.00030136,2]
[311242981,1704991839986,-500.0,0.00030136,2]
[311242983,1704991839997,-496.52210292,0.00030136,2]
[311242985,1704991840008,-500.0,0.00030136,2]
[311242987,1704991840019,-507.68147259,0.00030136,2]
[311242989,1704991840034,-502.49872204,0.00030136,2]
[311242991,1704991840045,-500.0,0.00030136,2]
[311242993,1704991840056,-500.0,0.00030136,2]
[311242995,1704991840072,-500.0,0.00030136,2]
[311242997,1704991840082,-421.07384829,0.00030136,2]
[311242999,1704991840093,-500.0,0.00030136,2]
[311243001,1704991840103,-500.0,0.00030136,2]
[311243003,1704991840114,-500.0,0.00030136,2]
[311243005,1704991840124,-500.0,0.00030136,2]
[311243007,1704991840134,-500.0,0.00030136,2]
[311243010,1704991840144,-384.12539335,0.00030136,2]
[311243013,1704991840153,-500.0,0.00030136,2]
[311243016,1704991840162,-1000.0,0.00030136,2]
[311243019,1704991840174,-500.0,0.00030136,2]
[311243022,1704991840183,-500.0,0.00030136,2]
[311243024,1704991840192,-500.0,0.00030136,2]
[311243026,1704991840201,-500.0,0.00030136,2]
[311243028,1704991840211,-500.0,0.00030136,2]
[311243030,1704991840221,-499.82950867,0.00030136,2]
[311243032,1704991840231,-500.0,0.00030136,2]
[311243034,1704991840241,-500.0,0.00030136,2]
[311243036,1704991840251,-490.65448554,0.00030136,2]
[311243038,1704991840261,-500.0,0.00030136,2]
[311243040,1704991840271,-500.0,0.00030136,2]
[311243042,1704991840288,-500.0,0.00030136,2]
[311243044,1704991840298,-500.0,0.00030136,2]
[311243046,1704991840307,-480.26425601,0.00030136,2]
[311243048,1704991840317,-383.59167857,0.00030136,2]
[311243050,1704991840326,-500.0,0.00030136,2]
[311243052,1704991840337,-547.65,0.00030136,2]
[311243054,1704991840347,-500.0,0.00030136,2]
[311243056,1704991840357,-500.0,0.00030136,2]
[311243057,1704991840367,-500.0,0.00030136,2]
[311243059,1704991840377,-500.0,0.00030136,2]
[311243061,1704991840387,-500.0,0.00030136,2]
[311243063,1704991840397,-500.0,0.00030136,2]
[311243066,1704991840408,-500.0,0.00030136,2]
[311243068,1704991840418,-500.0,0.00030136,2]
[311243070,1704991840429,-500.0,0.00030136,2]
[311243071,1704991840439,-500.0,0.00030136,2]
[311243073,1704991840449,-500.0,0.00030136,2]
[311243075,1704991840459,-500.0,0.00030136,2]
[311243077,1704991840469,-500.0,0.00030136,2]
[311243079,1704991840481,-500.0,0.00030136,2]
[311243082,1704991840491,-500.0,0.00030136,2]
[311243083,1704991840501,-500.0,0.00030136,2]
[311243085,1704991840511,-501.95390524,0.00030136,2]
[311243087,1704991840522,-500.0,0.00030136,2]
[311243089,1704991840536,-500.0,0.00030136,2]
[311243091,1704991840546,-502.67434409,0.00030136,2]
[311243094,1704991840556,-1345.63,0.00030136,2]
[311243095,1704991840565,-500.0,0.00030136,2]
[311243098,1704991840575,-500.0,0.00030136,2]
[311243099,1704991840585,-500.0,0.00030136,2]
[311243101,1704991840594,-502.22060965,0.00030136,2]
[311243103,1704991840604,-500.0,0.00030136,2]
[311243105,1704991840614,-545.28763592,0.00030136,2]
[311243107,1704991840623,-500.0,0.00030136,2]
[311243109,1704991840632,-500.0,0.00030136,2]
[311243111,1704991840642,-404.64629949,0.00030136,2]
[311243113,1704991840652,-500.0,0.00030136,2]
[311243115,1704991840661,-500.0,0.00030136,2]
[311243117,1704991840671,-500.0,0.00030136,2]
[311243119,1704991840680,-500.0,0.00030136,2]
[311243121,1704991840689,-500.0,0.00030136,2]
[311243123,1704991840698,-500.0,0.00030136,2]
[311243125,1704991840706,-501.28748838,0.00030136,2]
[311243127,1704991840715,-823.61,0.00030136,2]
[311243129,1704991840724,-500.0,0.00030136,2]
[311243131,1704991840733,-500.0,0.00030136,2]
[311243133,1704991840742,-500.0,0.00030136,2]
[311243135,1704991840751,-225.87099317,0.00030136,2]
[311243137,1704991840760,-500.0,0.00030136,2]
[311243139,1704991840769,-500.0,0.00030136,2]
[311243141,1704991840782,-500.0,0.00030136,2]
[311243143,1704991840791,-500.0,0.00030136,2]
[311243145,1704991840800,-500.0,0.00030136,2]
[311243147,1704991840809,-500.0,0.00030136,2]
[311243149,1704991840819,-179.29970668,0.00030136,2]
[311243151,1704991840829,-500.0,0.00030136,2]
[311243153,1704991840838,-500.0,0.00030136,2]
[311243155,1704991840847,-500.0,0.00030136,2]
[311243157,1704991840856,-500.0,0.00030136,2]
[311243159,1704991840867,-500.0,0.00030136,2]
[311243161,1704991840877,-500.0,0.00030136,2]
[311243163,1704991840890,-500.0,0.00030136,2]
[311243165,1704991840900,-500.0,0.00030136,2]
[311243167,1704991840911,-505.37692655,0.00030136,2]
[311243169,1704991840921,-502.77795987,0.00030136,2]
[311243171,1704991840930,-500.0,0.00030136,2]
[311243173,1704991840941,-500.0,0.00030136,2]
[311243175,1704991840950,-500.0,0.00030136,2]
[311243177,1704991840959,-519.47,0.00030136,2]
[311243179,1704991840969,-500.0,0.00030136,2]
[311243181,1704991840978,-500.0,0.00030136,2]
[311243182,1704991840987,-500.0,0.00030136,2]
[311243184,1704991840997,-500.0,0.00030136,2]
[311243186,1704991841006,-177.50791319,0.00030136,2]
[311243188,1704991841015,-676.63,0.00030136,2]
[311243190,1704991841027,-500.0,0.00030136,2]
[311243192,1704991841037,-518.15706842,0.00030136,2]
[311243194,1704991841046,-504.44166871,0.00030136,2]
[311243196,1704991841055,-502.09711386,0.00030136,2]
[311243208,1704991841153,-500.0,0.00030136,2]
[311243210,1704991841162,-412.25216866,0.00030136,2]
[311243212,1704991841172,-436.7156274,0.00030136,2]
[311243214,1704991841181,-500.0,0.00030136,2]
[311243215,1704991841190,-500.0,0.00030136,2]
[311243217,1704991841199,-593.4206134,0.00030136,2]
[311243219,1704991841209,-500.0,0.00030136,2]
[311243221,1704991841219,-502.26759104,0.00030136,2]
[311243224,1704991841229,-500.0,0.00030136,2]
[311243225,1704991841238,-503.53888354,0.00030136,2]
[311243227,1704991841248,-500.0,0.00030136,2]
[311243229,1704991841256,-500.0,0.00030136,2]
[311243231,1704991841265,-500.0,0.00030136,2]
[311243233,1704991841276,-501.08575708,0.00030136,2]
[311243235,1704991841285,-500.0,0.00030136,2]
[311243237,1704991841296,-715.26,0.00030136,2]
[311243239,1704991841306,-522.97859531,0.00030136,2]
[311243241,1704991841315,-500.0,0.00030136,2]
[311243243,1704991841324,-500.0,0.00030136,2]
[311243245,1704991841334,-448.03715962,0.00030136,2]
[311243247,1704991841343,-507.3107083,0.00030136,2]
[311243249,1704991841352,-632.37,0.00030136,2]
[311243251,1704991841361,-500.0,0.00030136,2]
[311243253,1704991841370,-500.0,0.00030136,2]
[311243255,1704991841379,-500.0,0.00030136,2]
[311243257,1704991841389,-501.67385778,0.00030136,2]
[311243259,1704991841399,-509.38199583,0.00030136,2]
[311243261,1704991841408,-500.0,0.00030136,2]
[311243263,1704991841418,-575.77609535,0.00030136,2]
[311243265,1704991841427,-614.64769916,0.00030136,2]
[311243267,1704991841436,-500.0,0.00030136,2]
[311243269,1704991841446,-500.0,0.00030136,2]
[311243271,1704991841456,-500.0,0.00030136,2]
[311243273,1704991841465,-500.0,0.00030136,2]
[311243275,1704991841474,-256.50796494,0.00030136,2]
[311243277,1704991841484,-500.0,0.00030136,2]
[311243279,1704991841493,-14199.19,0.00030136,2]
[311243281,1704991841503,-500.0,0.00030136,2]
[311243283,1704991841512,-500.0,0.00030136,2]
[311243285,1704991841521,-500.0,0.00030136,2]
[311243287,1704991841533,-500.0,0.00030136,2]
[311243289,1704991841542,-500.0,0.00030136,2]
[311243291,1704991841551,-500.0,0.00030136,2]
[311243293,1704991841560,-500.0,0.00030136,2]
[311243294,1704991841569,-1000.0,0.00030136,2]
[311243296,1704991841579,-500.0,0.00030136,2]
[311243298,1704991841588,-277.54315261,0.00030136,2]
[311243300,1704991841597,-500.0,0.00030136,2]
[311243302,1704991841607,-500.0,0.00030136,2]
[311243304,1704991841616,-322.61788866,0.00030136,2]
[311243306,1704991841627,-500.0,0.00030136,2]
[311243308,1704991841636,-330.37774473,0.00030136,2]
[311243310,1704991841646,-500.0,0.00030136,2]
[311243313,1704991841655,-500.0,0.00030136,2]
[311243314,1704991841665,-5032.63,0.00030136,2]
[311243316,1704991841674,-500.0,0.00030136,2]
[311243318,1704991841683,-500.0,0.00030136,2]
[311243320,1704991841692,-1411.87,0.00030136,2]
[311243322,1704991841701,-315.45310074,0.00030136,2]
[311243323,1704991841709,-500.0,0.00030136,2]
[311243324,1704991841718,-500.0,0.00030136,2]
[311243325,1704991841727,-500.0,0.00030136,2]
[311243326,1704991841735,-503.69799777,0.00030136,2]
[311243328,1704991841744,-2203.21,0.00030136,2]
[311243330,1704991841753,-3093.95,0.00030136,2]
[311243332,1704991841762,-329.4052217,0.00030136,2]
[311243334,1704991841771,-503.44386902,0.00030136,2]
[311243336,1704991841782,-500.0,0.00030136,2]
[311243338,1704991841791,-503.66399589,0.00030136,2]
[311243340,1704991841800,-503.24922674,0.00030136,2]
[311243342,1704991841809,-500.0,0.00030136,2]
[311243344,1704991841818,-500.0,0.00030136,2]
[311243346,1704991841828,-500.0,0.00030136,2]
[311243348,1704991841837,-596.07060748,0.00030136,2]
[311243350,1704991841846,-270.6920062,0.00030136,2]
[311243352,1704991841857,-500.0,0.00030136,2]
[311243354,1704991841867,-500.0,0.00030136,2]
[311243356,1704991841876,-500.0,0.00030136,2]
[311243358,1704991841885,-500.0,0.00030136,2]
[311243360,1704991841895,-500.0,0.00030136,2]
[311243362,1704991841904,-503.08297517,0.00030136,2]
[311243364,1704991841914,-500.20971053,0.00030136,2]
[311243366,1704991841923,-511.70322812,0.00030136,2]
[311243368,1704991841932,-585.28,0.00030136,2]
[311243370,1704991841942,-500.0,0.00030136,2]
[311243372,1704991841952,-500.0,0.00030136,2]
[311243374,1704991841962,-500.0,0.00030136,2]
[311243376,1704991841973,-500.0,0.00030136,2]
[311243378,1704991841983,-500.0,0.00030136,2]
[311243380,1704991841994,-500.0,0.00030136,2]
[311243382,1704991842004,-500.0,0.00030136,2]
[311243384,1704991842015,-500.0,0.00030136,2]
[311243386,1704991842027,-500.0,0.00030136,2]
[311243388,1704991842036,-500.0,0.00030136,2]
[311243390,1704991842046,-500.0,0.00030136,2]
[311243392,1704991842055,-500.0,0.00030136,2]
[311243393,1704991842064,-500.0,0.00030136,2]
[311243395,1704991842074,-500.0,0.00030136,2]
[311243397,1704991842084,-500.0,0.00030136,2]
[311243399,1704991842093,-500.0,0.00030136,2]
[311243401,1704991842102,-500.0,0.00030136,2]
[311243403,1704991842112,-500.0,0.00030136,2]
[311243405,1704991842122,-500.0,0.00030136,2]
[311243407,1704991842131,-500.0,0.00030136,2]
[311243409,1704991842140,-500.0,0.00030136,2]
[311243411,1704991842150,-500.0,0.00030136,2]
[311243413,1704991842159,-256.56,0.00030136,2]
[311243415,1704991842168,-535.47898625,0.00030136,2]
[311243417,1704991842178,-500.0,0.00030136,2]
[311243419,1704991842188,-500.0,0.00030136,2]
[311243421,1704991842198,-500.0,0.00030136,2]
[311243423,1704991842208,-1151.05,0.00030136,2]
[311243426,1704991842220,-502.53708543,0.00030136,2]
[311243428,1704991842229,-608.4169731,0.00030136,2]
[311243430,1704991842238,-349.44261804,0.00030136,2]
[311243432,1704991842248,-502.73708819,0.00030136,2]
[311243434,1704991842258,-500.0,0.00030136,2]
[311243435,1704991842267,-500.0,0.00030136,2]
[311243438,1704991842282,-885.86,0.00030136,2]
[311243439,1704991842292,-724.19,0.00030136,2]
[311243441,1704991842302,-500.0,0.00030136,2]
[311243444,1704991842312,-226.98517404,0.00030136,2]
[311243447,1704991842341,-500.0,0.00030136,2]
[311243449,1704991842351,-500.0,0.00030136,2]
[311243450,1704991842360,-573.08,0.00030136,2]
[311243452,1704991842369,-924.17,0.00030136,2]
[311243454,1704991842378,-600.0,0.00030136,2]
[311243456,1704991842387,-500.0,0.00030136,2]
[311243458,1704991842396,-500.0,0.00030136,2]
[311243461,1704991842405,-500.0,0.00030136,2]
[311243463,1704991842415,-777.45,0.00030136,2]
[311243464,1704991842424,-500.0,0.00030136,2]
[311243466,1704991842433,-500.0,0.00030136,2]
[311243468,1704991842442,-500.0,0.00030136,2]
[311243471,1704991842451,-500.0,0.00030136,2]
[311243473,1704991842460,-500.0,0.00030136,2]
[311243475,1704991842469,-920.91,0.00030136,2]
[311243477,1704991842479,-500.0,0.00030136,2]
[311243479,1704991842487,-500.0,0.00030136,2]
[311243480,1704991842496,-500.0,0.00030136,2]
[311243483,1704991842506,-199.60594324,0.00030136,2]
[311243484,1704991842515,-9374.31,0.00030136,2]
[311243488,1704991842526,-500.0,0.00030136,2]
[311243490,1704991842535,-500.0,0.00030136,2]
[311243493,1704991842545,-500.0,0.00030136,2]
[311243495,1704991842553,-500.0,0.00030136,2]
[311243497,1704991842562,-500.0,0.00030136,2]
[311243498,1704991842571,-514.61116608,0.00030136,2]
[311243501,1704991842581,-508.15998243,0.00030136,2]
[311243502,1704991842590,-508.57057146,0.00030136,2]
[311243504,1704991842599,-479.65972824,0.00030136,2]
[311243507,1704991842617,-20.34027176,0.00030136,2]
[311243509,1704991842627,-1878.77,0.00030136,2]
[311243511,1704991842636,-501.13724917,0.00030136,2]
[311243513,1704991842645,-798.89,0.00030136,2]
[311243515,1704991842655,-500.0,0.00030136,5]
[311243517,1704991842664,-200.0,0.00030136,2]
[311243519,1704991842673,-500.0,0.00030136,2]
[311243521,1704991842682,-501.62929449,0.00030136,2]
[311243523,1704991842692,-610.37,0.00030136,2]
[311243525,1704991842702,-500.0,0.00030136,2]
[311243527,1704991842712,-500.0,0.00030136,2]
[311243530,1704991842721,-500.0,0.00030136,2]
[311243532,1704991842732,-500.0,0.00030136,2]
[311243534,1704991842741,-500.0,0.00030136,2]
[311243536,1704991842750,-502.04341116,0.00030136,2]
[311243537,1704991842758,-505.92227533,0.00030136,2]
[311243539,1704991842767,-1000.0,0.00030136,2]
[311243541,1704991842777,-183.74702097,0.00030136,2]
[311243544,1704991842788,-316.25297903,0.00030136,2]
[311243546,1704991842797,-220.99118478,0.00030136,2]
[311243548,1704991842808,-279.00881522,0.00030136,2]
[311243550,1704991842817,-500.0,0.00030136,2]
[311243552,1704991842826,-500.0,0.00030136,2]
[311243554,1704991842836,-917.17,0.00030136,2]
[311243556,1704991842845,-500.0,0.00030136,2]
[311243558,1704991842855,-500.0,0.00030136,2]
[311243560,1704991842868,-498.4439831,0.00030136,2]
[311243562,1704991842877,-500.0,0.00030136,2]
[311243564,1704991842886,-500.0,0.00030136,2]
[311243566,1704991842895,-500.0,0.00030136,2]
[311243568,1704991842906,-500.0,0.00030136,2]
[311243570,1704991842915,-500.0,0.00030136,2]
[311243572,1704991842924,-500.0,0.00030136,2]
[311243574,1704991842933,-500.0,0.00030136,2]
[311243576,1704991842943,-500.0,0.00030136,2]
[311243578,1704991842952,-500.50039917,0.00030136,2]
[311243580,1704991842961,-500.0,0.00030136,2]
[311243582,1704991842971,-500.0,0.00030136,2]
[311243584,1704991842980,-500.0,0.00030136,2]
[311243587,1704991842990,-500.0,0.00030136,2]
[311243588,1704991842999,-500.0,0.00030136,2]
[311243590,1704991843008,-627.1533721,0.00030136,2]
[311243592,1704991843017,-509.14169102,0.00030136,2]
[311243594,1704991843027,-1900.53,0.00030136,2]
[311243596,1704991843037,-471.53290531,0.00030136,2]
[311243598,1704991843046,-500.0,0.00030136,2]
[311243601,1704991843055,-500.0,0.00030136,2]
[311243602,1704991843066,-504.42727557,0.00030136,2]
[311243604,1704991843075,-500.0,0.00030136,2]
[311243607,1704991843085,-525.22608399,0.00030136,2]
[311243609,1704991843094,-504.5661768,0.00030136,2]
[311243610,1704991843103,-500.0,0.00030136,2]
[311243613,1704991843113,-2849.65,0.00030136,2]
[311243615,1704991843122,-500.0,0.00030136,2]
[311243617,1704991843131,-500.0,0.00030136,2]
[311243619,1704991843141,-729.07,0.00030136,2]
[311243621,1704991843150,-8439.35685,0.00030137,2]
[311243623,1704991843159,-681.11468394,0.000302,3]
[311243625,1704991843168,-152.31739518,0.00030236,7]
[311243627,1704991843177,-166.584241,0.00030288,2]
[311243629,1704991843186,-172.432805,0.00030288,2]
[311243630,1704991843195,-183.58776,0.00030288,2]
[311243632,1704991843204,-183.587759,0.00030288,2]
[311243635,1704991843214,-11509.94738251,0.0003031,3]
[311243637,1704991843223,-202.75276894,0.0003031,5]
[311243639,1704991843232,-202.75,0.0003031,5]
[311243641,1704991843241,-162.20221515,0.0003031,5]
[311243643,1704991843251,-162.20221515,0.0003031,5]
[311243645,1704991843263,-162.20221515,0.0003031,5]
[311243647,1704991843273,-162.20221515,0.0003031,5]
[311243649,1704991843286,-162.20221515,0.0003031,5]
[311243651,1704991843296,-162.20221515,0.0003031,5]
[311243653,1704991843306,-162.20221515,0.0003031,5]
[311243655,1704991843316,-162.20221515,0.0003031,5]
[311243657,1704991843326,-162.20221515,0.0003031,5]
[311243659,1704991843336,-152.31739518,0.00030336,7]
[311243661,1704991843346,-185.337779,0.0003041,2]
[311243663,1704991843355,-500.0,0.0003041,2]
[311243665,1704991843365,-500.0,0.0003041,2]
[311243667,1704991843375,-500.0,0.0003041,2]
[311243669,1704991843385,-500.0,0.0003041,2]
[311243679,1704991843467,-361.23136847,0.0003041,2]
[311243682,1704991843484,-500.0,0.0003041,2]
[311243684,1704991843493,-500.0,0.0003041,2]
[311243686,1704991843502,-500.0,0.0003041,2]
[311243688,1704991843513,-500.0,0.0003041,2]
[311243690,1704991843523,-500.0,0.0003041,2]
[311243692,1704991843533,-500.0,0.0003041,2]
[311243694,1704991843542,-500.0,0.0003041,2]
[311243696,1704991843551,-581.97563949,0.0003041,2]
[311243698,1704991843561,-500.0,0.0003041,2]
[311243700,1704991843569,-500.25239641,0.0003041,2]
[311243702,1704991843578,-500.0,0.0003041,2]
[311243704,1704991843587,-500.0,0.0003041,2]
[311243706,1704991843596,-422.89262591,0.0003041,2]
[311243831,1704991844599,-191.60216416,0.0002063,3]
[311243832,1704991844608,-500.0,0.00030136,2]
[311243834,1704991844618,-77.10737409,0.0003041,2]
[311243836,1704991844628,-500.0,0.0003041,2]
[311243838,1704991844638,-500.0,0.0003041,2]
[311243840,1704991844649,-500.0,0.0003041,2]
[311243842,1704991844659,-500.0,0.0003041,2]
[311243844,1704991844668,-500.0,0.0003041,2]
[311243846,1704991844677,-500.0,0.0003041,2]
[311243848,1704991844686,-834.41243494,0.0003041,2]
[311243851,1704991844700,-165.58756506,0.0003041,2]
[311243852,1704991844710,-500.0,0.0003041,2]
[311243854,1704991844721,-555.64299228,0.0003041,2]
[311243856,1704991844731,-193.80460798,0.0003041,2]
[311243869,1704991844844,-15.78490206,0.0003041,2]
[311243870,1704991844854,-511.47851661,0.0003041,2]
[311243872,1704991844866,-500.0,0.0003041,2]
[311243874,1704991844876,-500.0,0.0003041,2]
[311243876,1704991844885,-500.0,0.0003041,2]
[311243878,1704991844894,-500.0,0.0003041,2]
[311243880,1704991844903,-547.65,0.0003041,2]
[311243882,1704991844913,-500.0,0.0003041,2]
[311243884,1704991844922,-500.0,0.0003041,2]